fUSD/lending_fUSD_20240424
["ID","MTS","AMOUNT","RATE_DAILY","PERIOD"]
[323426221,1713977440229,-687.6,0.0001123,2]
[323426222,1713977440239,-506.86,0.0001123,2]
[323426223,1713977440248,-1746.6,0.0001123,2]
[323426224,1713977440257,-3457.47,0.0001123,2]
[323426225,1713977440266,-1557.02,0.0001123,2]
[323426226,1713977440283,-264.36047043,0.0001123,2]
[323426227,1713977440292,-1027.25,0.0001123,2]
[323426228,1713977440301,-327.4347332,0.00011231,2]
[323426261,1713977442874,-159.56,0.00010839,2]
[323426262,1713977442885,-4060.86429134,0.00011117,2]
[323426263,1713977442929,-1199.01570866,0.00011117,2]
[323426264,1713977442939,-2493.66053769,0.0001123,2]
[323426265,1713977442983,-2139.23,0.00011116,2]
[323426266,1713977442994,-3637.33946231,0.0001123,2]
[323426267,1713977443004,-1116.5652668,0.00011231,2]
[323426268,1713977443015,-500.0,0.00011231,2]
[323426269,1713977443028,-2220.67,0.00011231,2]
[323426270,1713977443038,-500.0,0.00011231,2]
[323426271,1713977443049,-1313.77,0.00011231,2]
[323426272,1713977443060,-1731.75,0.00011231,2]
[323426273,1713977443070,-2477.46,0.00011231,2]
[323426274,1713977443081,-500.0,0.00011231,2]
[323426275,1713977443091,-1577.54,0.00011231,2]
[323426276,1713977443102,-2065.33,0.00011231,2]
[323426277,1713977443112,-649.26,0.00011231,2]
[323426278,1713977443123,-1456.47,0.00011231,2]
[323426279,1713977443137,-3415.9,0.00011231,2]
[323426280,1713977443147,-2506.42,0.00011231,2]
[323426281,1713977443157,-2438.91,0.00011231,2]
[323426282,1713977443168,-1828.31,0.00011231,2]
[323426283,1713977443178,-3438.36,0.00011231,2]
[323426284,1713977443189,-927.24,0.00011231,2]
[323426285,1713977443199,-1073.9,0.00011231,2]
[323426286,1713977443212,-1986.33,0.00011231,2]
[323426287,1713977443222,-4731.87,0.00011231,2]
[323426288,1713977443233,-2442.01,0.00011231,2]
[323426289,1713977443244,-500.0,0.00011232,2]
[323426290,1713977443254,-500.0,0.00011232,2]
[323426291,1713977443265,-593.38,0.00011232,2]
[323426292,1713977443276,-550.8,0.00011232,2]
[323426293,1713977443286,-1179.16,0.00011232,2]
[323426294,1713977443296,-500.0,0.00011232,2]
[323426295,1713977443306,-500.0,0.00011232,2]
[323426296,1713977443316,-500.0,0.00011232,2]
[323426297,1713977443326,-500.0,0.00011232,2]
[323426299,1713977443338,-500.0,0.00011232,2]
[323426300,1713977443349,-500.0,0.00011232,2]
[323426301,1713977443361,-802.34,0.00011232,2]
[323426302,1713977443371,-500.0,0.00011232,2]
[323426303,1713977443381,-500.0,0.00011232,2]
[323426304,1713977443392,-500.0,0.00011232,2]
[323426305,1713977443402,-1319.4,0.00011232,2]
[323426306,1713977443412,-500.0,0.00011232,2]
[323426307,1713977443422,-500.0,0.00011232,2]
[323426308,1713977443433,-500.0,0.00011232,2]
[323426309,1713977443443,-500.0,0.00011232,2]
[323426310,1713977443453,-500.0,0.00011232,2]
[323426311,1713977443463,-500.0,0.00011232,2]
[323426312,1713977443473,-500.0,0.00011232,2]
[323426313,1713977443484,-532.91,0.00011232,2]
[323426314,1713977443494,-500.0,0.00011232,2]
[323426315,1713977443504,-568.34645246,0.00011232,2]
[323426316,1713977443514,-500.0,0.00011232,2]
[323426317,1713977443527,-870.89,0.00011232,2]
[323426318,1713977443537,-500.0,0.00011232,2]
[323426319,1713977443547,-815.22,0.00011232,2]
[323426320,1713977443557,-500.0,0.00011232,2]
[323426321,1713977443567,-869.67,0.00011232,2]
[323426322,1713977443577,-1070.01,0.00011232,2]
[323426323,1713977443587,-500.0,0.00011232,2]
[323426324,1713977443598,-500.0,0.00011232,2]
[323426325,1713977443607,-918.04,0.00011232,2]
[323426326,1713977443618,-500.0,0.00011232,2]
[323426327,1713977443627,-1090.9,0.00011232,2]
[323426328,1713977443637,-500.0,0.00011232,2]
[323426329,1713977443647,-500.0,0.00011232,2]
[323426330,1713977443657,-184.96,0.00011232,2]
[323426331,1713977443667,-500.0,0.00011232,2]
[323426332,1713977443678,-752.09,0.00011232,2]
[323426333,1713977443688,-500.0,0.00011232,2]
[323426334,1713977443698,-500.0,0.00011232,2]
[323426335,1713977443708,-546.87,0.00011232,2]
[323426336,1713977443718,-500.0,0.00011232,2]
[323426337,1713977443728,-500.0,0.00011232,2]
[323426338,1713977443738,-500.0,0.00011232,2]
[323426339,1713977443749,-777.45,0.00011232,2]
[323426340,1713977443759,-500.0,0.00011232,2]
[323426341,1713977443769,-513.08240618,0.00011232,2]
[323426342,1713977443785,-500.0,0.00011232,2]
[323426343,1713977443796,-500.0,0.00011232,2]
[323426344,1713977443806,-500.0,0.00011232,2]
[323426345,1713977443815,-500.0,0.00011232,2]
[323426346,1713977443826,-500.0,0.00011232,2]
[323426347,1713977443837,-500.0,0.00011232,2]
[323426348,1713977443847,-500.0,0.00011232,2]
[323426349,1713977443857,-500.0,0.00011232,2]
[323426350,1713977443867,-500.0,0.00011232,2]
[323426351,1713977443877,-500.0,0.00011232,2]
[323426352,1713977443887,-608.01134871,0.00011232,2]
[323426353,1713977443897,-1669.19,0.00011232,2]
[323426354,1713977443907,-500.0,0.00011232,2]
[323426355,1713977443917,-500.0,0.00011232,2]
[323426356,1713977443928,-990.45,0.00011232,2]
[323426357,1713977443938,-1283.02,0.00011232,2]
[323426358,1713977443948,-584.76,0.00011232,2]
[323426359,1713977443958,-628.76,0.00011232,2]
[323426360,1713977443969,-948.83,0.00011232,2]
[323426361,1713977443978,-293.0024978,0.00011232,2]
[323426362,1713977443989,-500.0,0.00011232,2]
[323426363,1713977443998,-500.0,0.00011232,2]
[323426364,1713977444009,-500.0,0.00011232,2]
[323426365,1713977444019,-698.23,0.00011232,2]
[323426366,1713977444031,-500.0,0.00011232,2]
[323426367,1713977444041,-500.0,0.00011232,2]
[323426368,1713977444051,-500.0,0.00011232,2]
[323426369,1713977444061,-690.84,0.00011232,2]
[323426370,1713977444070,-500.0,0.00011232,2]
[323426371,1713977444080,-500.0,0.00011232,2]
[323426372,1713977444090,-500.0,0.00011232,2]
[323426373,1713977444100,-500.0,0.00011232,2]
[323426374,1713977444110,-760.72,0.00011232,2]
[323426375,1713977444120,-500.0,0.00011232,2]
[323426376,1713977444130,-500.0,0.00011232,2]
[323426377,1713977444142,-500.0,0.00011232,2]
[323426378,1713977444154,-712.68,0.00011232,2]
[323426379,1713977444163,-500.0,0.00011232,2]
[323426380,1713977444175,-932.32,0.00011232,2]
[323426381,1713977444185,-500.0,0.00011232,2]
[323426382,1713977444195,-500.0,0.00011232,2]
[323426383,1713977444206,-646.09,0.00011232,2]
[323426384,1713977444218,-746.74,0.00011232,2]
[323426385,1713977444228,-496.24257028,0.00011232,2]
[323426386,1713977444238,-975.97,0.00011232,2]
[323426387,1713977444248,-529.91572237,0.00011232,2]
[323426388,1713977444258,-500.0,0.00011232,2]
[323426389,1713977444269,-38.18019024,0.00011232,2]
[323426390,1713977444297,-444.9957792,0.00011116,2]
[323426391,1713977444311,-144.5642208,0.00011116,2]
[323426392,1713977444322,-461.81980976,0.00011232,2]
[323426393,1713977444333,-975.71,0.00011232,2]
[323426394,1713977444343,-500.0,0.00011232,2]
[323426395,1713977444354,-758.78,0.00011232,2]
[323426396,1713977444364,-500.0,0.00011232,2]
[323426397,1713977444374,-500.0,0.00011232,2]
[323426398,1713977444384,-500.0,0.00011232,2]
[323426399,1713977444395,-757.07,0.00011232,2]
[323426400,1713977444405,-500.0,0.00011232,2]
[323426401,1713977444415,-1186.17,0.00011232,2]
[323426402,1713977444426,-500.0,0.00011232,2]
[323426403,1713977444435,-500.0,0.00011232,2]
[323426404,1713977444446,-500.0,0.00011232,2]
[323426405,1713977444456,-500.0,0.00011232,2]
[323426406,1713977444466,-500.0,0.00011232,2]
[323426407,1713977444477,-899.84,0.00011232,2]
[323426408,1713977444487,-500.0,0.00011232,2]
[323426409,1713977444497,-391.709026,0.00011232,2]
[323426410,1713977444538,-108.290974,0.00011232,2]
[323426411,1713977444549,-500.0,0.00011232,2]
[323426412,1713977444560,-500.0,0.00011232,2]
[323426413,1713977444570,-500.0,0.00011232,2]
[323426414,1713977444580,-497.70119556,0.00011232,2]
[323426415,1713977444591,-500.0,0.00011232,2]
[323426416,1713977444601,-500.0,0.00011232,2]
[323426417,1713977444612,-648.48888796,0.00011232,2]
[323426418,1713977444622,-293.0,0.00011347,2]
[323426419,1713977444632,-500.0,0.0001139,2]
[323426420,1713977444642,-500.0,0.0001139,2]
[323426421,1713977444653,-777.86,0.0001139,2]
[323426422,1713977444663,-534.65,0.0001139,2]
[323426423,1713977444674,-1850.92,0.0001139,2]
[323426424,1713977444684,-1478.51,0.0001139,2]
[323426425,1713977444695,-500.0,0.0001139,2]
[323426426,1713977444705,-2196.82,0.0001139,2]
[323426427,1713977444716,-500.0,0.0001139,2]
[323426428,1713977444726,-500.0,0.0001139,2]
[323426429,1713977444737,-964.63,0.0001139,2]
[323426430,1713977444747,-500.0,0.0001139,2]
[323426431,1713977444758,-1132.6,0.0001139,2]
[323426432,1713977444768,-500.0,0.0001139,2]
[323426433,1713977444782,-505.65267071,0.0001139,2]
[323426434,1713977444792,-500.0,0.0001139,2]
[323426435,1713977444802,-1952.67627177,0.00011391,2]
[323426450,1713977445800,-2139.23,0.0001139,2]
[323426451,1713977445810,-589.56,0.0001139,2]
[323426452,1713977445819,-2936.22372823,0.00011391,2]
[323426453,1713977445828,-1724.26,0.00011391,2]
[323426454,1713977445838,-723.4,0.00011391,2]
[323426455,1713977445847,-2417.56,0.00011391,2]
[323426456,1713977445856,-940.01,0.00011391,2]
[323426457,1713977445866,-3964.41,0.00011391,2]
[323426458,1713977445875,-1030.65,0.00011391,2]
[323426459,1713977445884,-2492.44,0.00011391,2]
[323426460,1713977445894,-590.89,0.00011391,2]
[323426461,1713977445903,-721.25,0.00011391,2]
[323426462,1713977445912,-821.23,0.00011391,2]
[323426463,1713977445922,-2661.47,0.00011391,2]
[323426464,1713977445931,-786.64,0.00011391,2]
[323426465,1713977445940,-4071.18,0.00011391,2]
[323426466,1713977445950,-500.0,0.00011391,2]
[323426467,1713977445959,-1444.0,0.00011391,2]
[323426468,1713977445969,-7296.37,0.00011391,2]
[323426469,1713977445978,-1209.67,0.00011391,2]
[323426470,1713977445988,-673.8,0.00011391,2]
[323426471,1713977445997,-1435.46,0.00011391,2]
[323426472,1713977446006,-660.59,0.00011391,2]
[323426473,1713977446015,-1661.78,0.00011391,2]
[323426474,1713977446026,-960.46,0.00011391,2]
[323426475,1713977446035,-1735.74,0.00011391,2]
[323426476,1713977446045,-1254.77,0.00011391,2]
[323426477,1713977446054,-924.08,0.00011391,2]
[323426478,1713977446063,-1230.25,0.00011391,2]
[323426479,1713977446073,-504.04,0.00011391,2]
[323426480,1713977446082,-966.2,0.00011391,2]
[323426481,1713977446091,-500.0,0.00011391,2]
[323426482,1713977446101,-1516.45,0.00011391,2]
[323426483,1713977446110,-500.0,0.00011391,2]
[323426484,1713977446119,-1872.43,0.00011391,2]
[323426485,1713977446129,-500.0,0.00011391,2]
[323426486,1713977446142,-1470.84,0.00011391,2]
[323426487,1713977446151,-658.21,0.00011391,2]
[323426488,1713977446160,-4167.43,0.00011391,2]
[323426489,1713977446170,-768.21,0.00011391,2]
[323426490,1713977446179,-3995.7,0.00011391,2]
[323426491,1713977446188,-1408.51,0.00011391,2]
[323426492,1713977446197,-2654.17,0.00011391,2]
[323426493,1713977446207,-1727.83,0.00011391,2]
[323426494,1713977446218,-5259.88,0.00011391,2]
[323426495,1713977446228,-500.0,0.00011504,2]
[323426496,1713977446237,-1101.48,0.00011504,2]
[323426497,1713977446246,-500.0,0.00011504,2]
[323426498,1713977446255,-1247.32,0.00011504,2]
[323426499,1713977446264,-899.22,0.00011504,2]
[323426500,1713977446273,-1293.40627178,0.00011504,2]
[323426501,1713977446284,-393.85,0.00011504,2]
[323426502,1713977446344,-232.38372822,0.00011504,2]
[323426503,1713977446353,-608.22,0.00011504,2]
[323426505,1713977446362,-892.64,0.00011504,2]
[323426506,1713977446371,-2705.94,0.00011504,2]
[323426507,1713977446380,-2215.88,0.00011504,2]
[323426508,1713977446389,-2232.81,0.00011504,2]
[323426509,1713977446398,-1234.84,0.00011504,2]
[323426510,1713977446407,-542.88,0.00011504,2]
[323426512,1713977446416,-1238.21,0.00011504,2]
[323426514,1713977446425,-1143.21,0.00011504,2]
[323426516,1713977446435,-616.18,0.00011504,2]
[323426518,1713977446444,-500.0,0.00011504,2]
[323426519,1713977446453,-1555.65,0.00011504,2]
[323426520,1713977446462,-687.6,0.00011504,2]
[323426521,1713977446471,-506.86,0.00011504,2]
[323426522,1713977446480,-1746.6,0.00011504,2]
[323426523,1713977446489,-3457.47,0.00011504,2]
[323426524,1713977446498,-1557.02,0.00011504,2]
[323426526,1713977446508,-1027.25,0.00011504,2]
[323426527,1713977446517,-142.66189705,0.00011504,2]
[323426528,1713977446529,-852.84092918,0.00011504,2]
[323426529,1713977446540,-1702.82391213,0.00011504,2]
[323426530,1713977446552,-3432.67326164,0.00011504,2]
[323426531,1713977446561,-500.0,0.00011505,2]
[323426532,1713977446570,-2220.67,0.00011505,2]
[323426533,1713977446579,-500.0,0.00011505,2]
[323426534,1713977446588,-1313.77,0.00011505,2]
[323426535,1713977446598,-1731.75,0.00011505,2]
[323426536,1713977446607,-2477.46,0.00011505,2]
[323426537,1713977446617,-500.0,0.00011505,2]
[323426538,1713977446626,-1577.54,0.00011505,2]
[323426539,1713977446635,-2065.33,0.00011505,2]
[323426540,1713977446645,-649.26,0.00011505,2]
[323426541,1713977446654,-1456.47,0.00011505,2]
[323426542,1713977446663,-3415.9,0.00011505,2]
[323426543,1713977446672,-2506.42,0.00011505,2]
[323426544,1713977446681,-2438.91,0.00011505,2]
[323426545,1713977446691,-1828.31,0.00011505,2]
[323426546,1713977446700,-3438.36,0.00011505,2]
[323426547,1713977446709,-927.24,0.00011505,2]
[323426548,1713977446718,-1073.9,0.00011505,2]
[323426549,1713977446728,-1986.33,0.00011505,2]
[323426550,1713977446739,-4731.87,0.00011505,2]
[323426551,1713977446748,-2442.01,0.00011505,2]
[323426552,1713977446758,-500.0,0.00011506,2]
[323426553,1713977446767,-500.0,0.00011506,2]
[323426554,1713977446777,-593.38,0.00011506,2]
[323426555,1713977446786,-550.8,0.00011506,2]
[323426556,1713977446796,-500.0,0.00011506,2]
[323426557,1713977446806,-500.0,0.00011506,2]
[323426558,1713977446817,-500.0,0.00011506,2]
[323426559,1713977446826,-500.0,0.00011506,2]
[323426560,1713977446836,-500.0,0.00011506,2]
[323426561,1713977446846,-500.0,0.00011506,2]
[323426562,1713977446856,-233.23798803,0.00011506,2]
[323426563,1713977446900,-569.10201197,0.00011506,2]
[323426564,1713977446909,-500.0,0.00011506,2]
[323426565,1713977446919,-500.0,0.00011506,2]
[323426566,1713977446929,-500.0,0.00011506,2]
[323426567,1713977446938,-1319.4,0.00011506,2]
[323426568,1713977446947,-500.0,0.00011506,2]
[323426569,1713977446957,-500.0,0.00011506,2]
[323426570,1713977446965,-491.89232239,0.00011506,2]
[323426571,1713977446977,-8.10767761,0.00011506,2]
[323426572,1713977446986,-500.0,0.00011506,2]
[323426573,1713977446995,-500.0,0.00011506,2]
[323426574,1713977447005,-500.0,0.00011506,2]
[323426575,1713977447015,-500.0,0.00011506,2]
[323426576,1713977447025,-532.91,0.00011506,2]
[323426577,1713977447034,-500.0,0.00011506,2]
[323426578,1713977447043,-500.0,0.00011506,2]
[323426579,1713977447052,-430.98232239,0.00011506,2]
[323426580,1713977447064,-439.90767761,0.00011506,2]
[323426581,1713977447073,-402.82570767,0.00011506,2]
[323426582,1713977447083,-815.22,0.00011506,2]
[323426583,1713977447092,-500.0,0.00011506,2]
[323426584,1713977447101,-869.67,0.00011506,2]
[323426585,1713977447110,-1070.01,0.00011506,2]
[323426586,1713977447120,-500.0,0.00011506,2]
[323426587,1713977447130,-500.0,0.00011506,2]
[323426588,1713977447142,-918.04,0.00011506,2]
[323426589,1713977447151,-500.0,0.00011506,2]
[323426590,1713977447160,-1090.9,0.00011506,2]
[323426591,1713977447172,-500.0,0.00011506,2]
[323426592,1713977447182,-500.0,0.00011506,2]
[323426593,1713977447190,-184.96,0.00011506,2]
[323426594,1713977447200,-500.0,0.00011506,2]
[323426595,1713977447210,-752.09,0.00011506,2]
[323426596,1713977447220,-500.0,0.00011506,2]
[323426597,1713977447229,-500.0,0.00011506,2]
[323426598,1713977447238,-546.87,0.00011506,2]
[323426599,1713977447247,-500.0,0.00011506,2]
[323426600,1713977447257,-500.0,0.00011506,2]
[323426601,1713977447266,-500.0,0.00011506,2]
[323426602,1713977447277,-777.45,0.00011506,2]
[323426603,1713977447286,-500.0,0.00011506,2]
[323426604,1713977447295,-500.0,0.00011506,2]
[323426605,1713977447304,-500.0,0.00011506,2]
[323426606,1713977447315,-500.0,0.00011506,2]
[323426607,1713977447325,-500.0,0.00011506,2]
[323426608,1713977447333,-500.0,0.00011506,2]
[323426609,1713977447343,-500.0,0.00011506,2]
[323426610,1713977447353,-463.36,0.00011506,2]
[323426611,1713977447362,-500.0,0.00011506,2]
[323426612,1713977447372,-500.0,0.00011506,2]
[323426613,1713977447382,-500.0,0.00011506,2]
[323426614,1713977447392,-1669.19,0.00011506,2]
[323426615,1713977447401,-500.0,0.00011506,2]
[323426616,1713977447410,-500.0,0.00011506,2]
[323426617,1713977447420,-990.45,0.00011506,2]
[323426618,1713977447430,-1283.02,0.00011506,2]
[323426619,1713977447439,-584.76,0.00011506,2]
[323426620,1713977447449,-628.76,0.00011506,2]
[323426621,1713977447457,-948.83,0.00011506,2]
[323426622,1713977447467,-500.0,0.00011506,2]
[323426623,1713977447476,-500.0,0.00011506,2]
[323426624,1713977447485,-500.0,0.00011506,2]
[323426625,1713977447495,-698.23,0.00011506,2]
[323426626,1713977447504,-500.0,0.00011506,2]
[323426627,1713977447514,-500.0,0.00011506,2]
[323426628,1713977447526,-500.0,0.00011506,2]
[323426629,1713977447535,-690.84,0.00011506,2]
[323426630,1713977447544,-500.0,0.00011506,2]
[323426631,1713977447554,-594.24300484,0.00011506,2]
[323426632,1713977447563,-500.0,0.00011506,2]
[323426633,1713977447573,-500.0,0.00011506,2]
[323426634,1713977447584,-760.72,0.00011506,2]
[323426635,1713977447593,-500.0,0.00011506,2]
[323426636,1713977447602,-500.0,0.00011506,2]
[323426637,1713977447612,-500.0,0.00011506,2]
[323426638,1713977447621,-712.68,0.00011506,2]
[323426639,1713977447631,-244.64973059,0.00011506,2]
[323426640,1713977447641,-932.32,0.00011506,2]
[323426641,1713977447651,-500.0,0.00011506,2]
[323426642,1713977447661,-500.0,0.00011506,2]
[323426643,1713977447671,-646.09,0.00011506,2]
[323426644,1713977447683,-746.74,0.00011506,2]
[323426645,1713977447692,-975.97,0.00011506,2]
[323426646,1713977447702,-500.0,0.00011506,2]
[323426647,1713977447711,-500.0,0.00011506,2]
[323426648,1713977447720,-975.71,0.00011506,2]
[323426649,1713977447730,-500.0,0.00011506,2]
[323426650,1713977447740,-758.78,0.00011506,2]
[323426651,1713977447750,-500.0,0.00011506,2]
[323426652,1713977447759,-500.0,0.00011506,2]
[323426653,1713977447769,-500.0,0.00011506,2]
[323426654,1713977447780,-757.07,0.00011506,2]
[323426655,1713977447789,-500.0,0.00011506,2]
[323426656,1713977447800,-1186.17,0.00011506,2]
[323426657,1713977447809,-500.0,0.00011506,2]
[323426658,1713977447820,-500.0,0.00011506,2]
[323426659,1713977447830,-500.0,0.00011506,2]
[323426660,1713977447840,-500.0,0.00011506,2]
[323426661,1713977447851,-500.0,0.00011506,2]
[323426662,1713977447861,-899.84,0.00011506,2]
[323426663,1713977447871,-500.0,0.00011506,2]
[323426664,1713977447880,-500.0,0.00011506,2]
[323426665,1713977447890,-500.0,0.00011506,2]
[323426666,1713977447899,-500.0,0.00011506,2]
[323426667,1713977447909,-500.0,0.00011506,2]
[323426668,1713977447919,-500.0,0.00011506,2]
[323426669,1713977447928,-500.0,0.00011506,2]
[323426670,1713977447938,-157.19,0.00011644,2]
[323426671,1713977447947,-500.0,0.00011664,2]
[323426672,1713977447957,-500.0,0.00011664,2]
[323426673,1713977447967,-777.86,0.00011664,2]
[323426674,1713977447977,-534.65,0.00011664,2]
[323426675,1713977447986,-1850.92,0.00011664,2]
[323426676,1713977447996,-1478.51,0.00011664,2]
[323426677,1713977448010,-500.0,0.00011664,2]
[323426678,1713977448019,-2196.82,0.00011664,2]
[323426679,1713977448031,-500.0,0.00011664,2]
[323426680,1713977448044,-414.17206037,0.00011664,2]
[323426681,1713977448054,-964.63,0.00011664,2]
[323426682,1713977448064,-500.0,0.00011664,2]
[323426683,1713977448074,-1132.6,0.00011664,2]
[323426684,1713977448084,-500.0,0.00011664,2]
[323426685,1713977448094,-500.0,0.00011664,2]
[323426686,1713977448103,-2139.23,0.00011664,2]
[323426687,1713977448113,-589.56,0.00011664,2]
[323426688,1713977448123,-4888.9,0.00011665,2]
[323426689,1713977448134,-1724.26,0.00011665,2]
[323426690,1713977448145,-723.4,0.00011665,2]
[323426691,1713977448156,-2417.56,0.00011665,2]
[323426692,1713977448166,-940.01,0.00011665,2]
[323426693,1713977448177,-3964.41,0.00011665,2]
[323426694,1713977448187,-1030.65,0.00011665,2]
[323426695,1713977448197,-2492.44,0.00011665,2]
[323426696,1713977448208,-590.89,0.00011665,2]
[323426697,1713977448218,-721.25,0.00011665,2]
[323426698,1713977448228,-821.23,0.00011665,2]
[323426699,1713977448237,-2661.47,0.00011665,2]
[323426700,1713977448248,-786.64,0.00011665,2]
[323426701,1713977448257,-1781.48352318,0.00011665,2]
[323426702,1713977448279,-2289.69647682,0.00011665,2]
[323426703,1713977448289,-500.0,0.00011665,2]
[323426704,1713977448298,-1444.0,0.00011665,2]
[323426705,1713977448307,-7296.37,0.00011665,2]
[323426706,1713977448319,-1209.67,0.00011665,2]
[323426707,1713977448329,-673.8,0.00011665,2]
[323426708,1713977448339,-1435.46,0.00011665,2]
[323426709,1713977448352,-660.59,0.00011665,2]
[323426710,1713977448362,-1661.78,0.00011665,2]
[323426711,1713977448372,-960.46,0.00011665,2]
[323426712,1713977448383,-1735.74,0.00011665,2]
[323426713,1713977448394,-1254.77,0.00011665,2]
[323426714,1713977448404,-924.08,0.00011665,2]
[323426715,1713977448413,-1230.25,0.00011665,2]
[323426716,1713977448423,-504.04,0.00011665,2]
[323426717,1713977448433,-966.2,0.00011665,2]
[323426718,1713977448442,-500.0,0.00011665,2]
[323426719,1713977448451,-1516.45,0.00011665,2]
[323426720,1713977448461,-500.0,0.00011665,2]
[323426721,1713977448471,-1872.43,0.00011665,2]
[323426722,1713977448480,-500.0,0.00011665,2]
[323426723,1713977448490,-1470.84,0.00011665,2]
[323426724,1713977448499,-658.21,0.00011665,2]
[323426725,1713977448509,-4167.43,0.00011665,2]
[323426726,1713977448518,-768.21,0.00011665,2]
[323426727,1713977448529,-3995.7,0.00011665,2]
[323426728,1713977448538,-1408.51,0.00011665,2]
[323426729,1713977448547,-2654.17,0.00011665,2]
[323426730,1713977448556,-1727.83,0.00011665,2]
[323426731,1713977448566,-5259.88,0.00011665,2]
[323426732,1713977448575,-200.0,0.000117,4]
[323426733,1713977448585,-275.2,0.00011723,2]
[323426734,1713977448594,-487.2863411,0.00011778,2]
[323426735,1713977448603,-266.02476876,0.00011778,2]
[323426736,1713977448806,-728.1969348,0.00011778,2]
[323426737,1713977448816,-1269.88,0.00011778,2]
[323426738,1713977448826,-500.0,0.00011778,2]
[323426739,1713977448836,-1048.86,0.00011778,2]
[323426740,1713977448845,-1356.56,0.00011778,2]
[323426741,1713977448854,-1674.47,0.00011778,2]
[323426742,1713977448864,-998.72,0.00011778,2]
[323426743,1713977448874,-4113.12,0.00011778,2]
[323426744,1713977448884,-2815.21,0.00011778,2]
[323426745,1713977448894,-1012.74,0.00011778,2]
[323426746,1713977448903,-500.0,0.00011778,2]
[323426747,1713977448912,-1101.48,0.00011778,2]
[323426748,1713977448922,-2123.39,0.00011778,2]
[323426749,1713977448931,-500.0,0.00011778,2]
[323426750,1713977448943,-1247.32,0.00011778,2]
[323426751,1713977448953,-899.22,0.00011778,2]
[323426752,1713977448962,-4136.76,0.00011778,2]
[323426753,1713977448971,-622.1,0.00011778,2]
[323426754,1713977448981,-1919.64,0.00011778,2]
[323426755,1713977448991,-608.22,0.00011778,2]
[323426756,1713977449000,-892.64,0.00011778,2]
[323426757,1713977449009,-2705.94,0.00011778,2]
[323426758,1713977449019,-2215.88,0.00011778,2]
[323426759,1713977449031,-2232.81,0.00011778,2]
[323426760,1713977449040,-1234.84,0.00011778,2]
[323426761,1713977449050,-542.88,0.00011778,2]
[323426762,1713977449059,-1238.21,0.00011778,2]
[323426763,1713977449069,-6682.86821419,0.00011778,2]
[323426764,1713977449078,-1143.21,0.00011778,2]
[323426765,1713977449087,-616.18,0.00011778,2]
[323426766,1713977449096,-500.0,0.00011778,2]
[323426767,1713977449105,-1555.65,0.00011778,2]
[323426768,1713977449114,-687.6,0.00011778,2]
[323426769,1713977449124,-506.86,0.00011778,2]
[323426770,1713977449134,-1746.6,0.00011778,2]
[323426771,1713977449145,-3457.47,0.00011778,2]
[323426772,1713977449155,-1557.02,0.00011778,2]
[323426773,1713977449163,-1027.25,0.00011778,2]